Cogmind - Beta 16 @@@ ROGUE MODE // 2025.12.16 @ 03:19:35 Player: Keen Result: Destroyed by Y-45 Defender with Beam Rifle Performance ------------- Evolutions (1) 500 Regions Visited (3) 600 Robots Destroyed (39) 195 Value Destroyed (687) 687 Prototype IDs (1) 20 Alien Tech Used (0) 0 Bonus (207) 207 TOTAL SCORE: 2209 Bonus ------- Follower Combat Kills 207 Cogmind --------- Core Integrity 0/400 Matter 297/300 Energy 100/100 System Corruption 1% Temperature Cool (9) Movement Rolling (95) Ox1 Location -9/Materials Parts ------- > --- POWER (2) -------- (None) > --- PROPULSION (2) --- Wheel > --- UTILITY (2) ------ Large Storage Unit > --- WEAPON (3) ------- (None) > --- INVENTORY (15) --- Improved Heat Sink Cooling System Small Storage Unit Large Storage Unit High-capacity Battery (250) Medium Matter Pod (100) Medium Matter Pod (100) Medium Matter Pod (100) Visual Processing Unit Improved Terrain Scanner Peak State ------------ > --- POWER ------------ Improved Ion Engine Heavy Ion Engine > --- PROPULSION ------- Light Treads Improved Treads > --- UTILITY ---------- Large Storage Unit Core Shielding > --- WEAPON ----------- Shock Rifle Shock Rifle Heavy Assault Rifle > --- INVENTORY -------- Improved Heat Sink Cooling System Small Storage Unit Large Storage Unit High-capacity Battery Medium Matter Pod Medium Matter Pod Medium Matter Pod Visual Processing Unit Improved Terrain Scanner [Rating: 19] Favorites ----------- Power Light Ion Engine Engine Light Ion Engine Power Core Light Nuclear Core Propulsion Improved Treads Treads Improved Treads Wheel Wheel Utility Large Storage Unit Device Structural Scanner Storage Large Storage Unit Protection Core Shielding Weapon Heavy Assault Rifle Energy Gun Small Laser Ballistic Gun Heavy Assault Rifle Build | -11 -10 -10 -9 ------- Run | Yrd Mat Min Mat Slots Evolved 2 | . . . 2 Power 1 | . . . 1 Propulsion . | . . . . Utility . | . . . . Weapon 1 | . . . 1 Parts Attached 34 | 8 5 5 16 Power 9 | 1 1 3 4 Engine 8 | 1 . 3 4 Core 1 | . 1 . . Reactor . | . . . . Propulsion 9 | 2 2 . 5 Treads 7 | 2 2 . 3 Leg . | . . . . Wheel 2 | . . . 2 Hover . | . . . . Flight . | . . . . Utility 5 | 2 2 . 1 Device 2 | 1 1 . . Storage 2 | 1 1 . . Processor . | . . . . Hackware . | . . . . Protection 1 | . . . 1 Artifact . | . . . . Weapon 11 | 3 . 2 6 Energy Gun 4 | 2 . . 2 Energy Cannon . | . . . . Ballistic Gun 7 | 1 . 2 4 Ballistic Cannon . | . . . . Launcher . | . . . . Special Weapon . | . . . . Impact Weapon . | . . . . Slashing Weapon . | . . . . Piercing Weapon . | . . . . Special Melee Weapon . | . . . . Unidentified Prototypes 1 | . . . 1 Parts Lost 21 | . . 2 19 Power 5 | . . 1 4 Propulsion 6 | . . . 6 Utility 2 | . . 1 1 Weapon 8 | . . . 8 Highest Loss Streak 9 | . . 1 9 To Critical Strikes 1 | . . 1 . Average Backups 9 | . 4 13 11 Power . | . . . . Propulsion 1 | . . 2 . Utility 7 | . 2 8 9 Weapon 1 | . . 3 . Tool/Special . | . . . . Unused Backups 11 | . 3 . 8 Power . | . . . . Propulsion . | . . . . Utility 11 | . 3 . 8 Weapon . | . . . . Tool/Special . | . . . . Average Slot Usage (%) 88 | . 100 89 81 Engine 11 | . 3 11 16 Core 3 | . 10 1 . Treads 23 | . 28 28 16 Device 5 | . 14 4 . Storage 12 | . 14 14 11 Protection 3 | . . . 9 Energy Gun 8 | . 14 8 5 Ballistic Gun 18 | . 14 19 20 Peak Build Rating 19 | 9 13 13 19 Average Rating 11 | 6 10 11 14 On Entrance 8 | . 9 13 12 Avg Prop Armor Cover (%) . | . . . . Naked Turns . | . . . . Heaviest Build 45 | 11 28 29 45 Greatest Support 46 | 40 46 46 46 Greatest Overweight (x) 9 | . . . 9 Average Overweight (x) . | . . . . Largest Inventory Capacity 15 | 8 15 15 15 Average Capacity 13 | 7 9 15 15 Most Carried 15 | 1 14 15 14 Average Carried 9 | . 4 13 11 Final Capacity 15 | 8 15 15 15 Final Carried 14 | . 14 13 10 Class Distribution -------------------- 76% | Mutant 22% | Tank Dominant Class ---------------- Mutant | -10/Materials Mutant | -10/Mines Tank | -9/Materials Resources | -11 -10 -10 -9 ----------- Run | Yrd Mat Min Mat Matter Collected 1220 | 276 65 423 456 Remotely . | . . . . Salvage Created 1297 | 89 390 304 514 Parts 80 | 5 24 16 35 Haulers Intercepted 2 | . 1 . 1 Recyclers Shooed 4 | . 2 1 1 Parts Field Recycled . | . . . . Retrieved Matter . | . . . . Parts Self-Destructed . | . . . . Prevented . | . . . . Parts Restored . | . . . . Kills | -11 -10 -10 -9 ------- Run | Yrd Mat Min Mat Combat Hostiles Destroyed 24 | . 3 8 13 Guns 24 | . 3 8 13 Classes Destroyed 9 | 2 3 2 2 Worker 1 | . . 1 . Builder 2 | . . . 2 Tunneler 1 | 1 . . . Hauler 2 | . 1 . 1 Recycler 4 | 1 2 1 . Watcher 5 | . 3 . 2 Swarmer 13 | . . 6 7 Grunt 10 | . 3 2 5 Sentry 1 | . . . 1 Best Kill Streak 5 | 2 5 3 5 Combat Bots Only 3 | . 1 3 3 Max Kills in Single Turn 2 | 1 1 2 2 Gunslinging 1 | . . 1 1 Exploded . | . . . . Melee . | . . . . Uniques/NPCs Destroyed . | . . . . Combat | -11 -10 -10 -9 -------- Run | Yrd Mat Min Mat Hostile Shots Fired 310 | . 11 33 266 Missed 72 | . 2 4 66 Hits 238 | . 9 29 200 Projectile 238 | . 9 29 200 AOE 1 | . . . 1 Critical Strikes 11 | . . 4 7 Actively Blocked 1 | . . . 1 Damage Taken 2752 | . 120 261 2371 Core 490 | . 54 22 414 Absorbed by Shields . | . . . . Redirected to Shielding 33 | . . . 33 Core Remaining (%) 84 | 100 . 69 . Volleys Fired 153 | 15 30 42 66 Largest 3 | 2 2 2 3 Hottest 123 | 60 60 60 123 Shots Fired 332 | 30 60 84 158 Gun 332 | 30 60 84 158 Cannon . | . . . . Launcher . | . . . . Special . | . . . . Kinetic 230 | 15 30 47 138 Thermal 82 | 15 30 37 . Explosive . | . . . . Electromagnetic 20 | . . . 20 Robot Hit Streak 10 | 8 7 5 10 Robot Miss Streak 5 | 2 3 3 5 Penetration Max . | . . . . Secondary Targets 5 | . . 2 3 Max Gunslinging Chain 1 | . . 1 1 Shots Hit Robots 163 | 23 38 25 77 Core Hits 68 | 6 19 16 27 Critical Kills . | . . . . Critical Parts Destroyed . | . . . . Critical Strikes . | . . . . Melee Attacks . | . . . . Impact . | . . . . Slashing . | . . . . Piercing . | . . . . Sneak Attacks . | . . . . Combat Hostiles . | . . . . Follow-up Attacks . | . . . . Damage Inflicted 1938 | 208 358 263 1109 Guns 1918 | 208 358 263 1089 Cannons . | . . . . Explosions . | . . . . Melee . | . . . . Ramming 20 | . . . 20 Kinetic 1295 | 79 135 122 959 Thermal 493 | 129 223 141 . Explosive . | . . . . Electromagnetic 130 | . . . 130 Impact . | . . . . Slashing . | . . . . Piercing . | . . . . Highest Corruption 1 | . . . 1 Average Corruption 1 | . . . 1 Corruption Purged . | . . . . Corruption Blocked . | . . . . Overload Shots . | . . . . Overflow Damage . | . . . . Projectiles . | . . . . Explosions . | . . . . Melee . | . . . . Knockbacks . | . . . . Impact . | . . . . Kinetic . | . . . . Secondary . | . . . . Self-Inflicted Damage 8 | . . . 8 Shots . | . . . . Rammed 3 | . . . 3 Targets Rammed 3 | . . . 3 Kicked . | . . . . Crushed . | . . . . Highest Temperature 151 | 40 76 80 151 Average Temperature 45 | 19 28 28 60 Received Heat Transfer 813 | . 66 51 696 Siege Activations . | . . . . Martial Activations . | . . . . Shielding Activations . | . . . . Robots Disrupted . | . . . . Combat Hostiles . | . . . . Robots Corrupted . | . . . . Combat Hostiles . | . . . . Parts Fried . | . . . . Impact Corruptions . | . . . . Robots Melted . | . . . . Combat Hostiles . | . . . . Parts Melted . | . . . . Heat Transferred 1125 | 300 500 325 . Parts Sabotaged . | . . . . Parts Stolen . | . . . . Parts Stripped . | . . . . Power Chain Reactions . | . . . . Alert | -11 -10 -10 -9 ------- Run | Yrd Mat Min Mat Maximum Alert Level 1 | . . . 1 Low Security (%) 82 | 100 100 100 51 Level 1 17 | . . . 48 Level 2 . | . . . . Level 3 . | . . . . Level 4 . | . . . . Level 5 . | . . . . High Security . | . . . . Max Security . | . . . . Peak Influence 287 | 10 50 83 287 Initial . | . . . . Average 71 | . 13 14 177 Influence Increases 979 | 10 133 208 628 Destroy 0b10 Robot/C 660 | . 60 160 440 Destroy 0b10 Robot/NC 75 | 10 30 10 25 Destroy Leader 154 | . 28 30 96 Allied During Kill 35 | . . 8 27 Successful Hack 8 | . . . 8 Disable Machine 30 | . . . 30 Destroy Structure 2 | . . . 2 Lose Combat Pursuer 15 | . 15 . . Influence Decreases 919 | 10 133 208 568 Time Decay 669 | 10 133 188 338 Lost Part 210 | . . 20 190 Lost Ally 40 | . . . 40 Squads Dispatched 4 | . 1 . 3 Investigation 1 | . . . 1 Extermination . | . . . . Reinforcement 3 | . 1 . 2 Assault . | . . . . Garrison . | . . . . Intercept . | . . . . Searches Triggered . | . . . . Construction Impeded . | . . . . Haulers Reinforced . | . . . . Active Scanning Responses . | . . . . Cargo Convoy Interrupts . | . . . . Stealth | -11 -10 -10 -9 --------- Run | Yrd Mat Min Mat Distress Signals 3 | . 1 . 2 Communications Jammed . | . . . . Distress Signals . | . . . . Times Spotted 47 | . 8 8 31 Peak Tracking Total 6 | . 2 3 6 Tactical Retreats 1 | . 1 . . Traps | -11 -10 -10 -9 ------- Run | Yrd Mat Min Mat Traps Triggered . | . . . . Indirectly . | . . . . Trap Hack Attempts . | . . . . Triggered . | . . . . Disarmed . | . . . . Reprogrammed . | . . . . Reused . | . . . . Traps Extracted . | . . . . Installed . | . . . . Triggered . | . . . . Machines | -11 -10 -10 -9 ---------- Run | Yrd Mat Min Mat Machines Disabled 2 | . . . 2 Max in Single Turn 1 | . . . 1 Machines Repaired . | . . . . Machines Dismantled . | . . . . Machines Sabotaged . | . . . . Overloaded Fab Kills . | . . . . Hacking | -11 -10 -10 -9 --------- Run | Yrd Mat Min Mat Machines Accessed 2 | . 1 . 1 Terminals 2 | . 1 . 1 Fabricators . | . . . . Repair Stations . | . . . . Recycling Units . | . . . . Scanalyzers . | . . . . Garrison Access . | . . . . Total Hacks 5 | . 3 . 2 Successful 1 | . . . 1 Failed 4 | . 3 . 1 Catastrophic . | . . . . Database Lockouts . | . . . . Manual . | . . . . Terminals 5 | . 3 . 2 Fabricators . | . . . . Repair Stations . | . . . . Recycling Units . | . . . . Scanalyzers . | . . . . Garrison Access . | . . . . Terminal Hacks 1 | . . . 1 Level Access Points 1 | . . . 1 Fabricator Hacks . | . . . . Repair Station Hacks . | . . . . Recycling Unit Hacks . | . . . . Scanalyzer . | . . . . Garrison Access Hacks . | . . . . Unauthorized Hacks . | . . . . Terminals . | . . . . Fabricators . | . . . . Repair Stations . | . . . . Recycling Units . | . . . . Scanalyzers . | . . . . Garrison Access . | . . . . Data Cores Recovered . | . . . . Used . | . . . . Hacking Detections 2 | . 1 . 1 Full Trace Events . | . . . . Feedback Events . | . . . . Feedback Blocked . | . . . . Robot Schematics Acquired . | . . . . Robots Built . | . . . . Authchips . | . . . . Time . | . . . . Total Robot Build Rating . | . . . . Part Schematics Acquired . | . . . . Parts Built . | . . . . Authchips . | . . . . Time . | . . . . Total Part Build Rating . | . . . . Part Studies Acquired . | . . . . Parts Repaired . | . . . . Time . | . . . . Parts Recycled . | . . . . Recycled Matter . | . . . . Retrieved Matter . | . . . . Retrieved Components . | . . . . Parts Scanalyzed . | . . . . Part Schematics Acquired . | . . . . Parts Damaged . | . . . . Bothacking | -11 -10 -10 -9 ------------ Run | Yrd Mat Min Mat Used RIF Installer . | . . . . Robots Hacked . | . . . . Non-combat . | . . . . Combat . | . . . . Robot Hacks Applied . | . . . . Relay Couplers Released . | . . . . Fabnet Peak Effective % . | . . . . Robots Rewired . | . . . . Allies Hacked . | . . . . Hacks Repelled . | . . . . Allies | -11 -10 -10 -9 -------- Run | Yrd Mat Min Mat Total Allies 2 | . . 2 . Largest Group 2 | . . 2 2 Highest-Rated Group 41 | . . 41 41 Highest-Rated Ally 31 | . . 31 31 Total Orders . | . . . . Ally Attacks 15 | . . . 15 Total Damage 294 | . . . 294 Kills 9 | . . . 9 Allies Corrupted . | . . . . Allies Melted . | . . . . Intel | -11 -10 -10 -9 ------- Run | Yrd Mat Min Mat Active Infowar (turns) 803 | 61 495 247 . Terrain 225 | 61 164 . . Structural 578 | . 331 247 . Robot Analysis Total . | . . . . Derelict Logs Recovered 2 | . . 2 . Drone Launches . | . . . . Drone Recoveries . | . . . . Exploration | -11 -10 -10 -9 ------------- Run | Yrd Mat Min Mat Turns Passed 2234 | 154 495 788 797 Spaces Moved 1002 | 65 231 393 313 Core 18 | 4 . . 14 Treads 925 | 61 231 393 240 Legs . | . . . . Wheels 59 | . . . 59 Hover . | . . . . Flight . | . . . . Fastest Speed 50 | 50 160 160 80 Average Speed 166 | 153 160 160 180 Slowest Speed 500 | 160 160 160 500 Overloaded Moves . | . . . . Propulsion Burnouts . | . . . . Robots Hopped . | . . . . Potential Cave-ins . | . . . . Cave-ins Triggered . | . . . . Exploration Rate (%) 34 | 6 35 65 32 Regions Visited 3 Branch Regions 1 Pre-discovered Areas . | . . . . Known Exits Taken . | . . . . Unknown Exits Taken 3 | 1 1 1 . Scrap Searched 2 | . . 2 . Spaces Dug . | . . . . Terrain Destroyed . | . . . . Melee . | . . . . Projectile . | . . . . AOE . | . . . . Terrain Rammed . | . . . . Walls Destroyed . | . . . . Machines Disabled . | . . . . Actions | -11 -10 -10 -9 --------- Run | Yrd Mat Min Mat Total 1283 | 91 303 476 413 Wait 59 | . 16 32 11 Move 999 | 64 230 392 313 Hop . | . . . . Pick Up 23 | 2 17 1 3 Fast Attach 16 | 6 . 1 9 Attach 10 | 2 . 2 6 Detach 1 | 1 . . . Swap 8 | . 5 2 1 Drop 11 | 1 5 4 1 Fire 153 | 15 30 42 66 Melee . | . . . . Ram 2 | . . . 2 Kick . | . . . . Crush 1 | . . . 1 Escape Stasis . | . . . . Rewire . | . . . . Trap . | . . . . Miscellaneous . | . . . . Route ------- -11/Scrapyard -10/Materials (discovered 3 exits: *Mat / *Min x2) -10/Mines -9/Materials (discovered 3 exits: Mat x3) History --------- Turn | Location | Event 5 | -11/Scrapyard | Discovered new exit (range 14) 155 | -11/Scrapyard | Entered Materials 308 | -10/Materials | Build established: Mutant 345 | -10/Materials | Discovered new exit (range 14) 345 | -10/Materials | Discovered new exit (range 13) 619 | -10/Materials | Discovered new exit (range 7) 650 | -10/Materials | Entered Mines 793 | -10/Mines | Discovered new exit (range 9) 981 | -10/Mines | Learned Materials stockpile data 1438 | -10/Mines | Entered Materials 1438 | -9/Materials | Accompanied by 2 allies 1438 | -9/Materials | Evolved 2 slots: Power x1, Weapon x1 1443 | -9/Materials | Led the pair of lost Derelicts to an unsafe place 1464 | -9/Materials | Identified exit to Materials 1822 | -9/Materials | Lost 6 parts (1p2n3w) 2151 | -9/Materials | Core integrity fell below 50% 2184 | -9/Materials | Lost 9 parts (2p2n1u4w) 2191 | -9/Materials | Core integrity fell below 20% 2235 | -9/Materials | Destroyed by Y-45 Defender with Beam Rifle Last Messages --------------- Critical hit (Burn: +37). Imp. Treads destroyed. Core Shielding destroyed. Critical hit (Burn: +37). R-06 Scavenger collects Flight Unit. R-06 Scavenger collects Lgt. Assault Rifle. Hvy. Ion Engine destroyed. R-06 Scavenger collects Corrupted Lgt. Assault Rifle. Lgt. Assault Rifle destroyed. Acquired Wheel. Lgt. Assault Rifle destroyed. Slammed into Y-45 Defender. Destabilizing: System corrupted (+1). Slammed into Y-45 Defender. T-07 Excavator is excavating. Critical hit (Burn: +37). O-16 Technician: "IFF HANDSHAKE FAILED. SECURING TERMINAL." ALERT: Hostiles spotted, dispatching reinforcements to Terminal M007. Wheel destroyed. Critical hit (Burn: +37). Map ----- +----------------------------------------------------+ | ????????????????????# ???????# #? | | ??????????????[?????# ???????# #? | | ????????????????????# ???????# #? | | ????????????????????# ???????# #? | | ????????????????????# ???????# #? | | ????????????????????? ???????# #? | | ?????????????????? ??? ???????# #? | | ?????????????????? ???? ???????# #? | | ?????????????????# ???###/##??????# #? | | ?????????????????# #### ######## #? | | ?????????????????+ #? | | ?????????????????# #? | | ??????????????????# ### #? | | ??????????????????# ??## #############? | | ??????????????????# ???# # """""??????? | | ??????????????????#+#### + ""T""??????? | | ??????????????????# ## # #????? | | ??????????????????# ## # / #????? | | ???????????#??????# + #? #????? | | ??????????? ?????# ## #?#######????? | | ??????????"""?????# ## #????????????? | | ??????????""""????# ## #????????????? | | ?????????"""""????# ## ##???????????? | | ?????????""""" #####+## #???????????? | | ?????????""""" # Y #???????????? | | ?????????""""" @ #???????????? | | ?????????""""" # ##### #???????????? | | ??????? # #???##+###???????????? | | ???????###+###?# #????????????????????? | | ??????????????? #????????????????????? | | ?????????????? #????????????????????? | | ?????????????######????????????????????? | | ???????????????????????????????????????? | | ???????????????????????????????????????? | | | | | | | | | | | | | | | | | | | | | | | | | | | | | | | | | +----------------------------------------------------+ Best States ------------- Heat Dissipation 28 Energy Generation 21 Energy Capacity 445 Matter Stores 300 Matter Capacity 300 Sight Range 16 Terrain Scan Range 16 Terrain Scan Density 10 Core Shielding 20 Evasion (%) 44 Recoil Reduction 2 Item Schematics ----------------- None Robot Schematics ------------------ None Fabricated ------------ Nothing Repaired ---------- Nothing Studied --------- None Alien Tech Used ----------------- None Achievements -------------- None Challenges ------------ None Game ------ Seed PiercelightPowerRailcannon Manual? 0 Play Time 00:23:23 Cumulative 6.1 hours Start 2025.12.16 @ 02:56:04 End 2025.12.16 @ 03:19:35 Sessions 1 Manual Loads 0 Difficulty Rogue Special Mode None Game No. 8 Rogue 7 Adventurer 1 Explorer 0 Win Type - Total 0 Types 0/0/0/0/0/0/0/0/0/0 Lore% 3 Gallery% 8 Achievement% 9 Wizard Run 0 Options --------- Layout 0 ASCII 0 Keyboard 1 Movement Numpad Keybinds 0 Fullscreen 2 Font 24/Terminus Map View 76x50 Zoom Use 0% Tactical HUD 0 Map Filters NONE Filters NONE Steam 1 RUN: 31a19dd0-a120-4fa9-b2f0-c9b8d4bd58e7